Cogmind - Beta 10.2 @@@ ROGUE MODE // 2021.03.28 @ 16:14:59 Player: aperiodic Result: Self-destructed Performance ------------- Evolutions (4) 2000 Regions Visited (13) 2600 Robots Destroyed (303) 1515 Value Destroyed (9051) 9051 Prototype IDs (47) 940 Alien Tech Used (0) 0 Bonus (3009) 3009 TOTAL SCORE: 19115 Bonus ------- High Alert Combat Kills 597 Follower Combat Kills 141 Entered Garrisons 600 Used RIF Installer 1500 Aligned with FarCom 300 Friendly Fire -129 Cogmind --------- Core Integrity 742/850 Matter 290/300 Energy 160/160 System Corruption 6% Temperature Cool (0) Movement Core (1350) Ox26 Location -6/Factory Parts ------- > --- POWER (2) -------- Light Fission Core > --- PROPULSION (4) --- (None) > --- UTILITY (6) ------ High-capacity Storage Unit High-capacity Storage Unit Layered Medium Armor Plating Advanced Hacking Suite Relay Coupler [NC] (18) > --- WEAPON (3) ------- (None) > --- INVENTORY (20) --- Improved Medium Armor Plating Improved Medium Armor Plating Layered Medium Armor Plating Medium Reflective Plating 8R-AWN's Armor/EX System Shield Relay Coupler [NC] (31) Relay Coupler [Sentry] (13) Relay Coupler [Hunter] (12) Relay Coupler [Hunter] (10) Long-range Tractor Beam 8R-AWN's Boregun Advanced EMP Blaster Proton Missile Launcher Heavy Rocket Launcher Remote Datajack Remote Datajack Spear Peak State ------------ > --- POWER ------------ Cold Fusion Reactor > --- PROPULSION ------- Armored Treads Armored Treads > --- UTILITY ---------- Experimental Heat Sink High-capacity Storage Unit Experimental Targeting Computer 8R-AWN's Armor/EX > --- WEAPON ----------- Beam Cannon Heavy Assault Rifle 8R-AWN's Boregun > --- INVENTORY -------- Makeshift Power Source Armored Treads High-capacity Storage Unit High-capacity Matter Pod Hacking Suite Hacking Suite Hacking Suite Hacking Suite Grenade Launcher Rocket Launcher Spear [Rating: 61] Favorites ----------- Power Cold Fusion Reactor Engine Ion Engine Power Core Micro Nuclear Core Reactor Cold Fusion Reactor Propulsion Armored Treads Treads Armored Treads Wheel Wheel Utility High-capacity Storage Unit Device Experimental Heat Sink Storage High-capacity Storage Unit Processor Experimental Targeting Computer Hackware Relay Coupler [NC] Protection Light Armor Plating Weapon Heavy EM Pulse Gun Energy Gun Heavy EM Pulse Gun Energy Cannon Improved EM Pulse Cannon Ballistic Gun Heavy Assault Rifle Ballistic Cannon Assault Cannon Launcher Advanced EMP Blaster Special Weapon Remote Datajack Slashing Weapon Mining Claw Piercing Weapon Spear Special Melee Weapon Improved Datajack Build | -11 -10 -10 -9 -9 -9 -8 -8 -8 -8 -8 -7 -7 -6 ------- Run | Scr Mat Min Mat Min Exi Min Mat Gar Mat Gar Fac Gar Fac Slots Evolved 8 | . . . 2 . . . 2 . . . 2 . 2 Power 1 | . . . . . . . . . . . 1 . . Propulsion 2 | . . . . . . . . . . . 1 . 1 Utility 4 | . . . 2 . . . 1 . . . . . 1 Weapon 1 | . . . . . . . 1 . . . . . . Parts Attached 241 | 7 11 8 21 11 19 . 32 16 36 5 47 6 22 Power 11 | 1 1 1 . 1 1 . 1 . 1 . 2 . 2 Engine 4 | 1 1 . . 1 . . . . . . . . 1 Core 3 | . . 1 . . . . . . . . 1 . 1 Reactor 4 | . . . . . 1 . 1 . 1 . 1 . . Propulsion 30 | 2 4 1 3 1 1 . 7 2 2 . 7 . . Treads 26 | . 3 . 3 1 1 . 7 2 2 . 7 . . Leg . | . . . . . . . . . . . . . . Wheel 4 | 2 1 1 . . . . . . . . . . . Hover . | . . . . . . . . . . . . . . Flight . | . . . . . . . . . . . . . . Utility 68 | 2 4 3 8 3 11 . 7 3 6 1 14 . 6 Device 9 | . . . 4 1 3 . 1 . . . . . . Storage 12 | 2 1 1 1 . 3 . 4 . . . . . . Processor 3 | . . . . . 3 . . . . . . . . Hackware 12 | . . . . . . . . 1 3 . 6 . 2 Protection 32 | . 3 2 3 2 2 . 2 2 3 1 8 . 4 Artifact . | . . . . . . . . . . . . . . Weapon 132 | 2 2 3 10 6 6 . 17 11 27 4 24 6 14 Energy Gun 16 | . . . . . . . 10 4 2 . . . . Energy Cannon 4 | . . . 2 . . . 1 . . . 1 . . Ballistic Gun 51 | 2 2 3 5 4 3 . . 1 13 2 9 3 4 Ballistic Cannon 3 | . . . 3 . . . . . . . . . . Launcher 29 | . . . . 1 1 . 2 6 5 2 6 3 3 Special Weapon 5 | . . . . . . . . . . . 2 . 3 Impact Weapon . | . . . . . . . . . . . . . . Slashing Weapon 1 | . . . . 1 . . . . . . . . . Piercing Weapon 18 | . . . . . 2 . 4 . 5 . 3 . 4 Special Melee Weapon 5 | . . . . . . . . . 2 . 3 . . Unidentified Prototypes 9 | . . . . . 7 . . . 1 . 1 . . Parts Lost 37 | . 1 6 1 5 2 . . 2 . . 8 . 12 Power 5 | . . 1 . 1 . . . . . . . . 3 Propulsion 8 | . 1 1 . . . . . . . . 3 . 3 Utility 14 | . . 2 1 2 1 . . 1 . . 4 . 3 Weapon 10 | . . 2 . 2 1 . . 1 . . 1 . 3 Highest Loss Streak 5 | . 1 3 1 3 2 . . 1 . . 4 . 5 Average Slot Usage (%) 96 | . 96 97 98 90 94 88 98 99 99 100 98 100 86 Engine 2 | . 14 6 . 1 7 . . . . . . . . Core 2 | . . 7 11 3 . . . . . . 6 7 3 Reactor 5 | . . . . . 3 11 8 9 8 9 6 7 6 Treads 20 | . 23 14 21 22 22 22 18 18 17 18 22 23 17 Device 2 | . . . 2 2 . . 8 9 . . . . . Storage 16 | . 15 14 15 22 11 11 17 18 18 18 15 15 13 Processor 5 | . . . . . 12 11 9 9 9 9 . . . Hackware 4 | . . . . . . . . 2 11 11 11 7 11 Protection 11 | . 11 14 24 16 14 11 8 6 5 6 9 15 13 Energy Gun 4 | . . . . . . . 22 20 1 . . . . Ballistic Gun 15 | . 28 27 13 21 18 22 1 1 18 25 11 17 13 Launcher 1 | . . . . . 2 . . 5 . 1 . 4 1 Piercing Weapon 1 | . . . . . . . 2 . 5 . 4 . 2 Naked Turns . | . . . . . . . . . . . . . . Heaviest Build 121 | 13 20 27 49 53 85 77 92 95 93 95 118 111 121 Greatest Support 79 | 20 40 20 40 40 40 40 50 50 50 50 79 79 79 Greatest Overweight (x) 3 | . 1 2 3 1 2 1 2 1 1 1 2 1 3 Average Overweight (x) . | . . 1 . . 1 1 1 1 1 1 1 1 1 Largest Inventory Capacity 20 | 8 10 10 16 16 20 12 20 20 20 20 20 20 20 Average Capacity 16 | 5 8 9 12 16 12 12 19 20 20 20 20 20 20 Most Carried 20 | 5 10 10 16 16 17 12 20 20 20 20 20 17 19 Average Carried 15 | 3 7 8 11 15 9 12 19 18 19 19 18 17 15 Final Capacity 20 | 8 8 10 16 16 12 12 20 20 20 20 20 20 20 Final Carried 20 | 5 8 10 16 16 12 12 20 20 20 20 17 17 19 Class Distribution -------------------- 22% | Mutant 19% | Hauler-Mutant 17% | Scavenger-Mutant 14% | Bothacker-Mutant 11% | Hauler-Gunner 8% | Bothacker-Gunner Dominant Class ---------------- Mutant | -10/Materials Mutant | -10/Mines Scavenger-Mutant | -9/Materials Mutant | -9/Mines Scavenger-Mutant | -9/Exiles Scavenger-Mutant | -8/Mines Hauler-Gunner | -8/Materials Hauler-Mutant | -8/Garrison Bothacker-Gunner | -8/Materials Bothacker-Gunner | -8/Garrison Bothacker-Mutant | -7/Factory Hauler-Mutant | -7/Garrison Hauler-Mutant | -6/Factory Resources | -11 -10 -10 -9 -9 -9 -8 -8 -8 -8 -8 -7 -7 -6 ----------- Run | Scr Mat Min Mat Min Exi Min Mat Gar Mat Gar Fac Gar Fac Matter Collected 5736 | 304 811 181 459 177 700 93 389 350 621 119 932 11 589 Remotely . | . . . . . . . . . . . . . . Salvage Created 11254 | 137 1249 285 771 43 413 284 2148 945 1705 72 2286 149 767 Parts 701 | 9 79 21 51 9 62 18 116 59 106 17 107 9 38 Haulers Intercepted 16 | . 2 . 2 . . . 6 . 5 . 1 . . Recyclers Shooed 6 | . . . . . . . 3 . 1 . 1 . 1 Parts Field Recycled . | . . . . . . . . . . . . . . Retrieved Matter . | . . . . . . . . . . . . . . Parts Self-Destructed . | . . . . . . . . . . . . . . Prevented . | . . . . . . . . . . . . . . Kills | -11 -10 -10 -9 -9 -9 -8 -8 -8 -8 -8 -7 -7 -6 ------- Run | Scr Mat Min Mat Min Exi Min Mat Gar Mat Gar Fac Gar Fac Combat Hostiles Destroyed 219 | . 17 9 18 5 5 5 25 27 30 11 43 7 17 Melee 46 | . . . . . 1 . 1 . 20 . 18 . 6 Guns 83 | . 17 9 12 2 . 5 17 8 6 . 6 1 . Cannons 7 | . . . 5 . . . . . . . 2 . . AOE 75 | . . . 1 3 4 . 3 17 4 11 16 6 10 Classes Destroyed 18 | 2 7 1 3 . 3 . 1 . . . 1 . . Worker 16 | . 1 1 1 1 . 1 5 . 4 . 1 . 1 Builder 5 | . 1 . . . . . . . 2 . 2 . . Tunneler 5 | 3 . 1 . . . 1 . . . . . . . Hauler 16 | . 2 . 2 . . . 6 . 5 . 1 . . Recycler 18 | 1 6 . . . . 1 6 . . . 3 . 1 Mechanic 1 | . . 1 . . . . . . . . . . . Operator 3 | . 3 . . . . . . . . . . . . Turret 1 | . . . . . 1 . . . . . . . . Watcher 12 | . 3 . 1 . . . 4 . 3 . 1 . . Swarmer 85 | . 6 6 7 5 . 3 3 14 8 11 11 4 7 Grunt 79 | . 11 3 7 . . 2 9 7 14 . 19 2 5 Brawler 3 | . . . 1 . . . 1 . . . 1 . . Duelist 2 | . . . 1 . . . 1 . . . . . . Sentry 28 | . . . 2 . . . 9 5 7 . 4 . 1 Hunter 10 | . . . . . . . 2 1 1 . 3 . 3 Programmer 7 | . . . . . . . . . . . 5 1 1 Zionite 8 | . . . . . 8 . . . . . . . . Assembled 4 | . . . . . 4 . . . . . . . . Thug 1 | . . . 1 . . . . . . . . . . Best Kill Streak 9 | 4 6 8 5 3 6 4 7 5 5 8 9 5 4 Combat Bots Only 8 | . 3 8 4 3 4 3 4 5 4 8 8 5 4 Max Kills in Single Turn 4 | 1 2 1 2 2 2 1 2 2 3 4 4 2 4 Gunslinging 1 | . . . 1 1 . . . 1 . . . . . Exploded 4 | . . . 1 2 2 . 1 2 1 4 4 2 3 Melee 1 | . . . . . 1 . 1 . 1 . 1 . 1 Uniques/NPCs Destroyed 4 | . . . . . 4 . . . . . . . . 8R-AWN (-9/Exiles) EX-HEX (-9/Exiles) EX-DEC (-9/Exiles) EX-BIN (-9/Exiles) Combat | -11 -10 -10 -9 -9 -9 -8 -8 -8 -8 -8 -7 -7 -6 -------- Run | Scr Mat Min Mat Min Exi Min Mat Gar Mat Gar Fac Gar Fac Damage Taken 9677 | . 673 687 524 548 692 126 703 559 1129 52 1942 219 1823 Core 857 | . 146 69 17 17 79 7 39 65 122 22 151 15 108 Absorbed by Shields 13 | . . . . . . . . 13 . . . . . Core Remaining (%) 62 | 100 . 14 . . . 70 . . . 54 . 76 . Volleys Fired 541 | 18 101 30 48 15 59 11 66 60 41 8 45 11 28 Largest 3 | 2 2 2 2 2 2 2 3 3 3 3 3 3 3 Hottest 135 | 40 40 40 107 46 53 53 135 135 75 75 94 84 84 Shots Fired 1076 | 36 202 59 96 27 83 21 188 105 100 12 91 17 39 Gun 915 | 36 202 59 58 24 78 21 179 70 89 6 66 9 18 Cannon 46 | . . . 38 . . . 4 . . . 4 . . Launcher 108 | . . . . 3 5 . 5 35 11 6 20 8 15 Special 7 | . . . . . . . . . . . 1 . 6 Kinetic 691 | 36 202 59 74 24 78 21 8 1 89 6 66 9 18 Thermal 4 | . . . . . . . 4 . . . . . . Explosive 29 | . . . . 3 5 . 3 2 . 3 3 6 4 Electromagnetic 345 | . . . 22 . . . 173 102 11 3 21 2 11 Robot Hit Streak 22 | 6 22 6 13 7 14 15 14 20 20 5 11 18 10 Robot Miss Streak 8 | 3 3 4 8 2 1 1 2 1 3 . 4 4 4 Penetration Max 1 | . . . . . 1 1 . . . . . . . Secondary Targets 16 | . 3 4 1 1 . . 4 2 1 . . . . Max Gunslinging Chain 1 | . 1 1 1 1 . . 1 1 1 . . . . Shots Hit Robots 900 | 26 136 39 60 20 74 14 139 53 131 3 136 15 54 Core Hits 477 | 8 53 20 29 7 36 11 61 34 57 16 91 14 40 Critical Hits 27 | 2 4 1 1 . 8 3 1 . 2 . 2 . 3 Critical Kills 10 | . 2 1 1 . 2 2 . . 1 . 1 . . Critical Parts Destroyed 15 | 2 2 . . . 4 1 1 . 1 . 1 . 3 Melee Attacks 237 | . . . . 10 14 . 21 . 77 . 78 . 37 Impact . | . . . . . . . . . . . . . . Slashing 10 | . . . . 10 . . . . . . . . . Piercing 215 | . . . . . 14 . 21 . 74 . 69 . 37 Sneak Attacks 23 | . . . . . . . 2 . 10 . 9 . 2 Combat Hostiles 1 | . . . . . . . . . . . 1 . . Follow-up Attacks . | . . . . . . . . . . . . . . Damage Inflicted 22329 | 185 1490 465 1262 422 1410 276 2752 1844 3556 858 4470 920 2419 Guns 8725 | 185 1490 465 588 272 885 274 1949 451 920 . 889 97 260 Cannons 819 | . . . 640 . . . 55 . . . 124 . . Explosions 7569 | . . . 34 150 217 . 456 1393 637 858 1739 823 1262 Melee 5170 | . . . . . 308 . 262 . 1999 . 1718 . 883 Ramming 46 | . . . . . . 2 30 . . . . . 14 Kinetic 6552 | 185 1490 465 734 272 885 274 81 . 920 . 889 97 260 Thermal 1070 | . . . 34 . . . 232 114 195 . . . 495 Explosive 3382 | . . . . 150 217 . 231 156 . 767 758 715 388 Electromagnetic 6109 | . . . 494 . . . 1916 1574 442 91 1105 108 379 Impact . | . . . . . . . . . . . . . . Slashing . | . . . . . . . . . . . . . . Piercing 5170 | . . . . . 308 . 262 . 1999 . 1718 . 883 Highest Corruption 9 | . . . 1 1 1 1 . 1 1 1 8 9 6 Average Corruption 1 | . . . 1 1 1 1 . 1 1 1 3 8 2 Corruption Purged . | . . . . . . . . . . . . . . Effects 109 | . . . 8 7 14 5 . 6 8 3 41 13 4 Message Errors 37 | . . . 4 1 6 4 . 1 3 2 8 5 3 Matter Fused 10 | . . . . . . . . . . . 8 2 . Heat Flow Errors 5 | . . . . . . . . . . . 3 2 . Energy Discharges 17 | . . . 2 1 2 . . 2 2 1 4 3 . Data Loss (minor) 20 | . . . 1 4 5 1 . 1 1 . 6 1 . Data Loss (major) 1 | . . . . . . . . . . . 1 . . Misfires 2 | . . . . . . . . . . . 2 . . Targeting Errors 16 | . . . 1 1 1 . . 2 1 . 9 . 1 Weapon Failures 1 | . . . . . . . . . 1 . . . . Overload Shots . | . . . . . . . . . . . . . . Overflow Damage 792 | . . . 28 . 6 . 157 9 179 54 134 110 115 Projectiles 28 | . . . 28 . . . . . . . . . . Explosions 311 | . . . . . 6 . . 9 35 54 64 110 33 Melee 453 | . . . . . . . 157 . 144 . 70 . 82 Knockbacks 3 | . . . 2 . . . 1 . . . . . . Impact 1 | . . . . . . . 1 . . . . . . Kinetic 2 | . . . 2 . . . . . . . . . . Secondary . | . . . . . . . . . . . . . . Self-Inflicted Damage 291 | . . . 42 . 15 . 98 18 . . 47 . 71 Shots 11 | . . . 1 . 1 . 4 1 . . 2 . 2 Rammed 10 | . . . . . . 1 5 . . . . . 4 Targets Rammed 12 | . . . . . . 1 6 . . . . . 5 Kicked . | . . . . . . . . . . . . . . Crushed 2 | . . . . . . . 1 . . . . . 1 Highest Temperature 264 | . 18 35 264 . . . 3 . 78 16 228 223 30 Average Temperature 56 | . 5 12 92 . . . 3 . 27 12 61 65 9 Received Heat Transfer 2286 | . 249 189 198 . . 36 261 108 387 . 450 36 372 Effects 2 | . . . 2 . . . . . . . . . . Interference 2 | . . . 2 . . . . . . . . . . Siege Activations . | . . . . . . . . . . . . . . Robots Corrupted 10 | . . . . . . . 6 2 . . 1 . 1 Combat Hostiles 8 | . . . . . . . 4 2 . . 1 . 1 Parts Fried 46 | . . . 2 . . . 18 12 4 1 5 . 4 Impact Corruptions 1 | . . . . . . . 1 . . . . . . Robots Melted . | . . . . . . . . . . . . . . Combat Hostiles . | . . . . . . . . . . . . . . Parts Melted 2 | . . . . . . . 1 . . . 1 . . Heat Transferred 961 | . . . 50 . . . 411 50 150 . . . 300 Parts Sabotaged . | . . . . . . . . . . . . . . Parts Stolen . | . . . . . . . . . . . . . . Parts Stripped . | . . . . . . . . . . . . . . Power Chain Reactions 17 | . . . 1 . . . 3 8 1 . 3 . 1 Missiles Intercepted . | . . . . . . . . . . . . . . Alert | -11 -10 -10 -9 -9 -9 -8 -8 -8 -8 -8 -7 -7 -6 ------- Run | Scr Mat Min Mat Min Exi Min Mat Gar Mat Gar Fac Gar Fac Peak Influence 1158 | 20 264 324 502 121 . 90 373 1158 674 560 623 654 612 Initial 564 | . 13 84 48 121 . . 5 113 564 263 294 436 343 Average 296 | 5 143 166 286 46 . 27 210 879 377 447 290 507 282 Maximum Alert Level 4 | . 1 1 2 . . . 1 4 2 2 2 2 2 Low Security (%) 39 | 100 70 66 35 100 . 100 33 4 8 . 23 . 32 Level 1 36 | . 29 33 30 . . . 66 4 49 18 61 . 53 Level 2 16 | . . . 33 . . . . 18 41 81 15 100 13 Level 3 1 | . . . . . . . . 18 . . . . . Level 4 5 | . . . . . . . . 54 . . . . . Level 5 . | . . . . . . . . . . . . . . High Security . | . . . . . . . . . . . . . . Max Security . | . . . . . . . . . . . . . . Squads Dispatched 37 | . 6 1 2 . . . 3 . 7 . 11 . 7 Investigation 12 | . 3 . 1 . . . 2 . . . 4 . 2 Extermination 6 | . . . . . . . . . . . 5 . 1 Reinforcement 13 | . 3 . 1 . . . 1 . 3 . 2 . 3 Assault 1 | . . 1 . . . . . . . . . . . Garrison 5 | . . . . . . . . . 4 . . . 1 Intercept . | . . . . . . . . . . . . . . Construction Impeded 5 | . . . 1 . . . 1 . 1 . 1 . 1 Haulers Reinforced 1 | . . . . . . . . . . . . . 1 Stealth | -11 -10 -10 -9 -9 -9 -8 -8 -8 -8 -8 -7 -7 -6 --------- Run | Scr Mat Min Mat Min Exi Min Mat Gar Mat Gar Fac Gar Fac Distress Signals 9 | . 1 . 1 . . . 5 . 1 . 1 . . Communications Jammed . | . . . . . . . . . . . . . . Distress Signals . | . . . . . . . . . . . . . . Times Spotted 341 | . 40 14 27 13 13 8 42 25 55 7 54 10 33 Peak Tracking Total 9 | . 3 8 5 3 9 3 5 5 7 4 6 6 5 Tactical Retreats 44 | . 4 . 2 5 2 3 3 1 8 . 3 3 10 Traps | -11 -10 -10 -9 -9 -9 -8 -8 -8 -8 -8 -7 -7 -6 ------- Run | Scr Mat Min Mat Min Exi Min Mat Gar Mat Gar Fac Gar Fac Traps Triggered 34 | . 1 . 2 . . . 2 18 . 2 6 3 . Indirectly 4 | . . . . . . . . 3 . . . 1 . Trap Hack Attempts . | . . . . . . . . . . . . . . Triggered . | . . . . . . . . . . . . . . Disarmed . | . . . . . . . . . . . . . . Reprogrammed . | . . . . . . . . . . . . . . Reused 2 | . . . . . 2 . . . . . . . . Traps Extracted . | . . . . . . . . . . . . . . Installed 4 | . . . . . 4 . . . . . . . . Triggered . | . . . . . . . . . . . . . . Exploded 3 | . . . . . 3 . . . . . . . . Machines | -11 -10 -10 -9 -9 -9 -8 -8 -8 -8 -8 -7 -7 -6 ---------- Run | Scr Mat Min Mat Min Exi Min Mat Gar Mat Gar Fac Gar Fac Machines Disabled 29 | . 1 . 1 . 8 1 . 7 3 1 2 . 5 Max in Single Turn 4 | . 1 . 1 . 1 1 . 1 2 1 1 . 4 Garrison Relay 5 | . . . . . . . . 4 . 1 . . . Machines Sabotaged . | . . . . . . . . . . . . . . Garrisons Compromised . | . . . . . . . . . . . . . . Overloaded Fab Kills . | . . . . . . . . . . . . . . Fab Network Shutdowns . | . . . . . . . . . . . . . . Hacking | -11 -10 -10 -9 -9 -9 -8 -8 -8 -8 -8 -7 -7 -6 --------- Run | Scr Mat Min Mat Min Exi Min Mat Gar Mat Gar Fac Gar Fac Machines Accessed 44 | . 7 . 5 1 1 . 12 . 6 . 9 . 3 Terminals 30 | . 4 . 5 1 . . 10 . 4 . 5 . 1 Fabricators 1 | . . . . . . . . . . . 1 . . Repair Stations 5 | . 1 . . . . . 1 . 1 . 2 . . Recycling Units 3 | . 2 . . . . . . . . . . . 1 Scanalyzers . | . . . . . . . . . . . . . . Garrison Access 4 | . . . . . . . 1 . 1 . 1 . 1 Total Hacks 138 | . 19 . 19 5 1 . 41 . 22 . 25 . 6 Successful 84 | . 11 . 11 3 1 . 29 . 11 . 15 . 3 Failed 52 | . 8 . 7 2 . . 11 . 11 . 10 . 3 Catastrophic 5 | . . . . 1 . . . . 1 . 2 . 1 Database Lockouts 2 | . . . 1 . . . 1 . . . . . . Manual 58 | . 12 . 14 5 1 . 16 . 6 . 3 . 1 Terminals 108 | . 14 . 19 5 . . 37 . 16 . 14 . 3 Fabricators 4 | . . . . . . . . . . . 4 . . Repair Stations 16 | . 3 . . . . . 2 . 5 . 6 . . Recycling Units 4 | . 2 . . . . . . . . . . . 2 Scanalyzers . | . . . . . . . . . . . . . . Garrison Access 5 | . . . . . . . 2 . 1 . 1 . 1 Terminal Hacks 40 | . 5 . 6 3 1 . 17 . 3 . 4 . 1 Part Schematic 1 | . . . . . . . . . . . 1 . . Robot Analysis 5 | . 2 . 1 . . . 2 . . . . . . Prototype ID Bank 10 | . 2 . . 3 . . 4 . 1 . . . . Branch Access Points 1 | . . . 1 . . . . . . . . . . Terminal Index 2 | . . . 1 . . . . . . . . . 1 Alert Level 5 | . . . 1 . . . 4 . . . . . . Unreport Threat 6 | . . . . . . . 2 . 2 . 2 . . Locate Traps 7 | . 1 . 1 . . . 4 . . . 1 . . Hauler Manifests 1 | . . . 1 . . . . . . . . . . Zone Layout 1 | . . . . . . . 1 . . . . . . EX-Prototype ID Bank 1 | . . . . . 1 . . . . . . . . Fabricator Hacks 3 | . . . . . . . . . . . 3 . . Load Schematic 1 | . . . . . . . . . . . 1 . . Build 2 | . . . . . . . . . . . 2 . . Repair Station Hacks 12 | . 2 . . . . . 2 . 4 . 4 . . Scan Component 6 | . 1 . . . . . 1 . 2 . 2 . . Repair 6 | . 1 . . . . . 1 . 2 . 2 . . Recycling Unit Hacks 1 | . . . . . . . . . . . . . 1 Retrieve Matter 1 | . . . . . . . . . . . . . 1 Scanalyzer . | . . . . . . . . . . . . . . Garrison Access Hacks 3 | . . . . . . . 1 . 1 . 1 . . Unlock Access 3 | . . . . . . . 1 . 1 . 1 . . Unauthorized Hacks 25 | . 4 . 5 . . . 9 . 3 . 3 . 1 Terminals 22 | . 2 . 5 . . . 9 . 3 . 3 . . Track 12 | . 2 . 2 . . . 5 . 2 . 1 . . Botnet 8 | . . . 2 . . . 3 . 1 . 2 . . Operators 2 | . . . 1 . . . 1 . . . . . . Fabricators . | . . . . . . . . . . . . . . Repair Stations . | . . . . . . . . . . . . . . Recycling Units 2 | . 2 . . . . . . . . . . . . Tunnel 2 | . 2 . . . . . . . . . . . . Scanalyzers . | . . . . . . . . . . . . . . Garrison Access 1 | . . . . . . . . . . . . . 1 Eject 1 | . . . . . . . . . . . . . 1 Data Cores Recovered . | . . . . . . . . . . . . . . Used . | . . . . . . . . . . . . . . Hacking Detections 34 | . 4 . 5 1 . . 8 . 5 . 9 . 2 Full Trace Events 5 | . 1 . . . . . 1 . . . 2 . 1 Feedback Events . | . . . . . . . . . . . . . . Feedback Blocked . | . . . . . . . . . . . . . . Robot Schematics Acquired . | . . . . . . . . . . . . . . Robots Built . | . . . . . . . . . . . . . . Matter . | . . . . . . . . . . . . . . Time . | . . . . . . . . . . . . . . Total Robot Build Rating . | . . . . . . . . . . . . . . Part Schematics Acquired 1 | . . . . . . . . . . . 1 . . Parts Built 2 | . . . . . . . . . . . 2 . . Matter 424 | . . . . . . . . . . . 424 . . Time 106 | . . . . . . . . . . . 106 . . Total Part Build Rating 12 | . . . . . . . . . . . 12 . . Parts Repaired 6 | . 1 . . . . . 1 . 2 . 2 . . Time 354 | . 26 . . . . . 80 . 124 . 124 . . Parts Recycled . | . . . . . . . . . . . . . . Recycled Matter . | . . . . . . . . . . . . . . Retrieved Matter . | . . . . . . . . . . . . . . Retrieved Components . | . . . . . . . . . . . . . . Parts Scanalyzed . | . . . . . . . . . . . . . . Part Schematics Acquired . | . . . . . . . . . . . . . . Parts Damaged . | . . . . . . . . . . . . . . Bothacking | -11 -10 -10 -9 -9 -9 -8 -8 -8 -8 -8 -7 -7 -6 ------------ Run | Scr Mat Min Mat Min Exi Min Mat Gar Mat Gar Fac Gar Fac Used RIF Installer 3 | . . . . . . . . 1 . 1 . 1 . Hotswap 1 | . . . . . . . . . . 1 . . . Patrol Navigation 1 | . . . . . . . . . . . . 1 . Robots Hacked 13 | . . . . . . . . . 2 . 9 . 2 Non-combat 11 | . . . . . . . . . 2 . 7 . 2 Combat 2 | . . . . . . . . . . . 2 . . Robot Hacks Applied 18 | . . . . . . . . . 3 . 10 . 5 parse_system 2 | . . . . . . . . . . . 1 . 1 no_distress 2 | . . . . . . . . . . . 2 . . find_chute 1 | . . . . . . . . . . . 1 . . map_walls 1 | . . . . . . . . . . . 1 . . drop_inventory 3 | . . . . . . . . . . . 2 . 1 purge_threat 5 | . . . . . . . . . 3 . . . 2 map_route 2 | . . . . . . . . . . . 2 . . streamctrl_low 1 | . . . . . . . . . . . . . 1 formatsys_high 1 | . . . . . . . . . . . 1 . . Relay Couplers Released 26 | . . . . . . . . 17 . 5 . . 4 Ejected 4 | . . . . . . . . . . . . . 4 Machine Destruction 22 | . . . . . . . . 17 . 5 . . . Attached 5 | . . . . . . . . 1 1 . 1 . 2 Robots Rewired . | . . . . . . . . . . . . . . Allies Hacked . | . . . . . . . . . . . . . . Hacks Repelled . | . . . . . . . . . . . . . . Allies | -11 -10 -10 -9 -9 -9 -8 -8 -8 -8 -8 -7 -7 -6 -------- Run | Scr Mat Min Mat Min Exi Min Mat Gar Mat Gar Fac Gar Fac Total Allies 3 | . . 1 . . . . . . . . 1 . 1 Largest Group 1 | . . 1 1 . . . . . . . 1 . . Highest-Rated Group 32 | . . 31 31 . . . . . . . 32 . . Highest-Rated Ally 32 | . . 31 31 . . . . . . . 32 . . Total Orders 3 | . . . . . . . . . . . 3 . . STAY 2 | . . . . . . . . . . . 2 . . FOLLOW 1 | . . . . . . . . . . . 1 . . Ally Attacks 19 | . . 8 7 . . . . . . . 4 . . Total Damage 294 | . . 84 105 . . . . . . . 105 . . Kills 5 | . . 3 2 . . . . . . . . . . Allies Corrupted 1 | . . . . . . . . . . . 1 . . Allies Melted . | . . . . . . . . . . . . . . Intel | -11 -10 -10 -9 -9 -9 -8 -8 -8 -8 -8 -7 -7 -6 ------- Run | Scr Mat Min Mat Min Exi Min Mat Gar Mat Gar Fac Gar Fac Robot Analysis Total 5 | . 2 . 1 . . . 2 . . . . . . Derelict Logs Recovered 3 | . . 2 . 1 . . . . . . . . . Drone Launches . | . . . . . . . . . . . . . . Drone Recoveries . | . . . . . . . . . . . . . . Exploration | -11 -10 -10 -9 -9 -9 -8 -8 -8 -8 -8 -7 -7 -6 ------------- Run | Scr Mat Min Mat Min Exi Min Mat Gar Mat Gar Fac Gar Fac Turns Passed 23640 | 113 2271 680 1291 2078 2378 1222 2788 2099 2730 686 3927 301 1076 Spaces Moved 10461 | 60 1203 574 590 762 1082 594 1132 1044 851 372 1640 146 411 Core 14 | 14 . . . . . . . . . . . . . Treads 9667 | . 1049 28 556 762 1082 594 1132 1044 851 372 1640 146 411 Legs . | . . . . . . . . . . . . . . Wheels 780 | 46 154 546 34 . . . . . . . . . . Hover . | . . . . . . . . . . . . . . Flight . | . . . . . . . . . . . . . . Fastest Speed 50 | 50 80 90 100 170 170 190 172 172 172 172 173 180 180 Average Speed 173 | 73 150 100 176 186 191 190 184 175 182 172 179 180 184 Slowest Speed 220 | 80 160 160 190 190 210 190 210 185 185 172 205 180 220 Overloaded Moves . | . . . . . . . . . . . . . . Propulsion Burnouts . | . . . . . . . . . . . . . . Robots Hopped . | . . . . . . . . . . . . . . Cave-ins Triggered . | . . . . . . . . . . . . . . Exploration Rate (%) 66 | 4 98 95 49 99 90 99 92 96 75 50 41 40 8 Regions Visited 13 Branch Regions 4 Pre-discovered Areas 5 | . 2 3 . . . . . . . . . . . Known Exits Taken 4 | . . . 1 . . . 1 . 1 . 1 . . Unknown Exits Taken 6 | 1 1 1 . 1 1 1 . . . . . . . Scrap Searched 6 | . . 3 . 1 . 2 . . . . . . . Spaces Dug 26 | . . . . 2 1 . 14 . 3 . 3 . 3 Terrain Destroyed 283 | . . . 7 19 34 6 36 38 11 8 18 15 91 Melee 26 | . . . . 2 1 . 14 . 3 . 3 . 3 Projectile 15 | . . . 5 . 3 6 1 . . . . . . AOE 242 | . . . 2 17 30 . 21 38 8 8 15 15 88 Terrain Rammed . | . . . . . . . . . . . . . . Walls Destroyed . | . . . . . . . . . . . . . . Machines Disabled . | . . . . . . . . . . . . . . Actions | -11 -10 -10 -9 -9 -9 -8 -8 -8 -8 -8 -7 -7 -6 --------- Run | Scr Mat Min Mat Min Exi Min Mat Gar Mat Gar Fac Gar Fac Total 14654 | 99 1473 625 745 1371 1287 666 1656 1213 1863 409 2456 166 625 Wait 2851 | 4 140 5 52 556 66 61 359 50 841 14 589 . 114 Move 10450 | 59 1202 573 589 761 1081 593 1132 1043 851 371 1639 145 411 Hop . | . . . . . . . . . . . . . . Pick Up 154 | 11 9 7 17 11 18 . 23 10 8 4 28 . 8 Fast Attach 31 | 1 3 1 9 1 4 . 5 . 4 . 3 . . Attach 55 | 6 . 5 2 5 6 . 5 3 3 . 15 . 5 Detach 1 | . . . . . 1 . . . . . . . . Swap 155 | . 8 2 10 5 9 . 22 13 29 5 29 6 17 Drop 123 | . 10 2 18 7 25 . 17 8 9 3 24 . . Fire 541 | 18 101 30 48 15 59 11 66 60 41 8 45 11 28 Melee 237 | . . . . 10 14 . 21 . 77 . 78 . 37 Ram . | . . . . . . . . . . . . . . Kick . | . . . . . . . . . . . . . . Crush 12 | . . . . . . 1 6 . . . . . 5 Escape Stasis 40 | . . . . . . . . 26 . 4 6 4 . Rewire . | . . . . . . . . . . . . . . Trap 4 | . . . . . 4 . . . . . . . . Miscellaneous . | . . . . . . . . . . . . . . Route ------- -11/Scrapyard -10/Materials (discovered 4 exits: *Mat x3 / [*Min]) -10/Mines (discovered 2 exits: *Mat x2) -9/Materials (discovered 4 exits: *Mat / *Min / Sto x2) -9/Mines (discovered 4 exits: *Mat x2 / *Exi / [*Zio]) -9/Exiles -8/Mines (discovered 2 exits: *Mat x2) -8/Materials (discovered 3 exits: *Fac x2 / Gar) -8/Garrison (discovered 3 exits: *Mat x3) -8/Materials (discovered 3 exits: *Fac x2 / Gar) -8/Garrison -7/Factory (discovered 3 exits: *Fac / [*Low] / Gar) -7/Garrison -6/Factory History --------- Turn | Location | Event 10 | -11/Scrapyard | Discovered new exit (range 15) 114 | -11/Scrapyard | Entered Materials 302 | -10/Materials | Build established: Mutant 371 | -10/Materials | Discovered new exit (range 16) 706 | -10/Materials | Discovered new exit (range 16) 969 | -10/Materials | Discovered new exit (range 14) 1002 | -10/Materials | Discovered new exit (range 13) 1907 | -10/Materials | Core integrity fell below 50% 2242 | -10/Materials | Repaired Lgt. Treads 2385 | -10/Materials | Entered Mines 2403 | -10/Mines | Learned location of Zion (-7) 2484 | -10/Mines | Discovered new exit (range 10) 2548 | -10/Mines | Lost 3 parts (1u2w) 2556 | -10/Mines | Core integrity fell below 20% 2580 | -10/Mines | Destroyed 8 combat bots 2652 | -10/Mines | Met a Derelict testing a Signal Generator 2659 | -10/Mines | Found Signal Generator 2799 | -10/Mines | Learned location of Storage (-9) 3044 | -10/Mines | Discovered new exit (range 4) 3065 | -10/Mines | Entered Materials 3065 | -9/Materials | Accompanied by 1 ally 3065 | -9/Materials | Evolved 2 slots: Utility x2 3159 | -9/Materials | Central database locked down 3658 | -9/Materials | Identified exit to Mines 3658 | -9/Materials | Identified exit to Storage 3983 | -9/Materials | Discovered new exit (range 4) 4101 | -9/Materials | Build established: Scavenger-Mutant 4356 | -9/Materials | Entered Mines 4357 | -9/Mines | Assembled infested the area 5039 | -9/Mines | Learned Materials terminal intel 5379 | -9/Mines | Build established: Mutant 5385 | -9/Mines | Discovered new exit (range 5) 5537 | -9/Mines | Found a hidden stash of uninstalled traps 5592 | -9/Mines | A Derelict revealed a hidden shortcut to a safe place 5700 | -9/Mines | Lost 3 parts (1u2w) 5822 | -9/Mines | Received a Rocket Launcher from a helpful Derelict 5852 | -9/Mines | Discovered new exit (range 12) 5874 | -9/Mines | Joined a pair of Derelicts in attacking an 0b10 outpost 6030 | -9/Mines | Deemed a non-threat by the Exiles lab entrance 6032 | -9/Mines | Discovered new exit (range 5) 6434 | -9/Mines | Entered Exiles 6482 | -9/Exiles | Met 8R-AWN 6514 | -9/Exiles | Met EX-HEX 6515 | -9/Exiles | Build established: Scavenger-Mutant 6585 | -9/Exiles | Met EX-DEC 6769 | -9/Exiles | Discovered new exit (range 11) 6872 | -9/Exiles | Met EX-BIN 6901 | -9/Exiles | Aligned with FarCom system 6903 | -9/Exiles | Given EX-Vault access code 6944 | -9/Exiles | Build established: Hauler-Mutant 6951 | -9/Exiles | Opened EX-Vault 6998 | -9/Exiles | Warned to stay clear of 0b10 Research branches 7471 | -9/Exiles | Build established: Mutant 7610 | -9/Exiles | Attacked by the Exiles 7794 | -9/Exiles | Destroyed 8R-AWN 7806 | -9/Exiles | Found Prototype Device 7807 | -9/Exiles | Identified AS-neutralizer No. 17b 7814 | -9/Exiles | Found Prototype Ballistic Gun 7815 | -9/Exiles | Identified 8R-AWN's Boregun 7822 | -9/Exiles | Found Prototype Protection 7822 | -9/Exiles | Identified 8R-AWN's Armor/EX 7839 | -9/Exiles | Found Prototype Processor 7839 | -9/Exiles | Identified Exp. Targeting Computer 7995 | -9/Exiles | Destroyed EX-HEX 8050 | -9/Exiles | Destroyed EX-DEC 8084 | -9/Exiles | Destroyed EX-BIN 8106 | -9/Exiles | Build established: Scavenger-Mutant 8812 | -9/Exiles | Entered Mines 9469 | -8/Mines | Discovered new exit (range 9) 9557 | -8/Mines | Discovered new exit (range 8) 10034 | -8/Mines | Entered Materials 10034 | -8/Materials | Evolved 2 slots: Utility x1, Weapon x1 10035 | -8/Materials | Loaded intel: 12 terminal locations 10152 | -8/Materials | Central database locked down 10511 | -8/Materials | Build established: Hauler-Gunner 11100 | -8/Materials | Repaired Cold Fusion Reactor 11822 | -8/Materials | Discovered new exit (range 3) 12232 | -8/Materials | Build established: Hauler-Mutant 12547 | -8/Materials | Discovered new exit (range 4) 12765 | -8/Materials | Build established: Hauler-Gunner 12822 | -8/Materials | Identified exit to Garrison 12822 | -8/Materials | Entered Garrison 12897 | -8/Garrison | Triggered checkpoint 12899 | -8/Garrison | Triggered checkpoint 12953 | -8/Garrison | Triggered checkpoint 13017 | -8/Garrison | Garrison Relay disabled 13131 | -8/Garrison | Triggered checkpoint 13218 | -8/Garrison | Triggered checkpoint 13396 | -8/Garrison | Build established: Hauler-Mutant 13440 | -8/Garrison | Triggered checkpoint 13505 | -8/Garrison | Garrison Relay disabled 13542 | -8/Garrison | Discovered new exit (range 14) 13578 | -8/Garrison | Installed Relay Interface Framework 13775 | -8/Garrison | Triggered checkpoint 13919 | -8/Garrison | Discovered new exit (range 10) 14124 | -8/Garrison | Discovered new exit (range 14) 14629 | -8/Garrison | Triggered checkpoint 14733 | -8/Garrison | Garrison Relay disabled 14921 | -8/Garrison | Entered Materials 14952 | -8/Materials | Build established: Hauler-Gunner 15338 | -8/Materials | Build established: Hauler-Mutant 16010 | -8/Materials | Discovered new exit (range 13) 16021 | -8/Materials | Build established: Bothacker-Mutant 16693 | -8/Materials | Repaired Cold Fusion Reactor 16738 | -8/Materials | Repaired Med. Treads 16862 | -8/Materials | Discovered new exit (range 4) 16945 | -8/Materials | Garrison activated, responded to threat 17370 | -8/Materials | Build established: Bothacker-Gunner 17609 | -8/Materials | Garrison activated, responded to threat 17651 | -8/Materials | Identified exit to Garrison 17651 | -8/Materials | Entered Garrison 17660 | -8/Garrison | Expanded RIF knowledge: Hotswap 17774 | -8/Garrison | Triggered checkpoint 17799 | -8/Garrison | Destroyed 8 combat bots 17880 | -8/Garrison | Discovered new exit (range 13) 18117 | -8/Garrison | Triggered checkpoint 18156 | -8/Garrison | Garrison Relay disabled 18337 | -8/Garrison | Entered Factory 18337 | -7/Factory | Evolved 2 slots: Power x1, Propulsion x1 18762 | -7/Factory | Destroyed 8 combat bots 19298 | -7/Factory | Build established: Bothacker-Mutant 19536 | -7/Factory | Fabricated Adv. Hacking Suite (x1) 19589 | -7/Factory | Fabricated Adv. Hacking Suite (x1) 20857 | -7/Factory | Discovered new exit (range 6) 21363 | -7/Factory | Lost 4 parts (1n3u) 21496 | -7/Factory | Discovered new exit (range 14) 21676 | -7/Factory | Repaired Cold Fusion Reactor 21722 | -7/Factory | Repaired Med. Treads 21805 | -7/Factory | Build established: Hauler-Mutant 22257 | -7/Factory | Identified exit to Garrison 22264 | -7/Factory | Entered Garrison 22273 | -7/Garrison | Expanded RIF knowledge: Watcher Feeds 22362 | -7/Garrison | Triggered checkpoint 22439 | -7/Garrison | Triggered checkpoint 22492 | -7/Garrison | Triggered checkpoint 22499 | -7/Garrison | Triggered checkpoint 22543 | -7/Garrison | Discovered new exit (range 13) 22565 | -7/Garrison | Entered Factory 22565 | -6/Factory | Evolved 2 slots: Propulsion x1, Utility x1 23506 | -6/Factory | Garrison activated, responded to threat 23641 | -6/Factory | Self-destructed Last Messages --------------- 23633_ H-66 Slayer destroyed. 23633_ U-05 Engineer lays Concrete. 23633_ U-05 Engineer builds a Wall. 23633_ R-10 Processor collects Adv. Weight Redist. System. 23634_ R-10 Processor collects Med. Treads. 23634_ Imp. Treads destroyed. 23635_ U-05 Engineer builds a Wall. 23636_ R-10 Processor collects Wheel. 23637_ R-10 Processor collects Prototype Ballistic Cannon. 23637_ Med. Treads destroyed. 23637_ K-01 Serf collects debris. 23638_ Imp. Medium Armor Plating destroyed. 23638_ U-05 Engineer builds a Wall. 23639_ UA5LVZPBBL9FT=JMZDPIPCE4:PH 23639_ U-05 Engineer builds a Wall. 23640_ U-05 Engineer lays Concrete. 23640_ Flak Gun destroyed. 23640_ Cold Fusion Reactor destroyed. 23640_ R-10 Processor collects Prototype Ballistic Cannon. 23640_ K-01 Serf collects debris. Map ----- +----------------------------------------------------+ | ?????????????????????????????????????????????????? | | ?????????????????????????????????????????????????? | | ?????????????????????????????????????????????????? | | ?????????????????????????????????????????????????? | | ????????????????????????? ?????????????????????? | | ??????????????????????? ?????????????????????? | | ??????????????????????# ?????????????????????? | | ?????????????????????? ?????????????????????? | | ??????????????????????# #####????????????????? | | ??????????????????????# # ????????????????? | | ??????????????????????# # ?? ?? ????????? | | ????????????????????### # #???????? | | ???????????????????? # + """ #???????? | | ???????????????????? # """ #???????? | | ?????????????????????!# R *= = """ +???????? | | ????????????????????? # !%!# "" #???????? | | ????????????????????? #u% ! "" "" #???????? | | ??????????????????????#u # """#???????? | | ??????????????????????# R R"#???????? | | ??????????????????????# p # """#???????? | | ??????????????????????# + #???????? | | ???????? ???????????# u ##############???????? | | ??????? ?????????# #??? ???????????????? | | ??????? ######### #??"""???????????????? | | ?????? % #? """???????????????? | | ?????? @ # """???????????????? | | ?????? k# """"??????????????? | | ?????? / """"??????????????? | | ?????? # "??????????????? | | ????????############### #? =![%?????????????? | | ??????????????????????# #??=% = #???????????? | | ??????????????????????# #??? ####??########## | | ??????????????????????# #???? #?????# | | ?????????????########## #???????????# | | ?????????????# # ##########??# | | ?????????????# # % # ^ #??# | | ?????????????# #g # """ #??# | | ?????????????# # # """ !#??# | | ?????????????# # # """ #??# | | ?????????????# # # #??# | | ?????????????# !*# # #??# | | ?????????????# / + #??# | | ?????????????# = # #^"" "" #??# | | ?????????????########## # ""G"" #??# | | ??????????????????????# ###################/## | | ??????????????????????# * | | ??????????????????????# | | ??????????????????????# | | ??????????????????????# | | ??????????????????????# | +----------------------------------------------------+ Best States ------------- Heat Dissipation 57 Coolant Potential 65 Energy Generation 30 Energy Capacity 265 Matter Stores 300 Matter Capacity 300 Sight Range 16 Terrain Scan Density 10 Armor Coverage 1150 Resistance: TH 15 Resistance: EX 90 Evasion (%) 44 Targeting Accuracy 12 Armor Integrity Analysis 33 Recoil Reduction 3 Salvage Targeting 2 Offensive Hacking 20 Defensive Hacking 10 Relay Coupler Types 38 Relay Coupler Value 2 Item Schematics ----------------- Adv. Hacking Suite | -7/Factory | Hacked Robot Schematics ------------------ None Fabricated ------------ Adv. Hacking Suite | x1 | -7/Factory Adv. Hacking Suite | x1 | -7/Factory Alien Tech Used ----------------- None Achievements -------------- None Challenges ------------ None Game ------ Seed LightpackBattleStabilizer Manual? 0 Play Time 02:56:46 Cumulative 389.9 hours Start 2021.03.27 @ 23:11:17 End 2021.03.28 @ 16:14:59 Sessions 5 Manual Loads 0 Difficulty Rogue Special Mode None Game No. 128 Rogue 124 Adventurer 4 Explorer 0 Win Type - Total 9 Types 4/1/3/0/0/0/0/1/0 Lore% 79 Gallery% 82 Achievement% 68 Wizard Run 0 Options --------- ASCII 1 Keyboard 0 Movement Arrows Keybinds 0 Fullscreen 1 Font 18/Terminus Map View 76x50 Tactical HUD 1 Map Filters NONE Filters NONE Steam 1 RUN: 019074e9-e008-4284-b866-4bf6a72b3f5e